bitfinex-derivatives/quotes_SOLF0:USTF0_20240920
["timestamp","ask_amount","ask_price","bid_price","bid_amount"]
[1726813463239,10.37,148.22,148.17,10.37]
[1726813463750,3.3727,148.23,148.18,10.37]
[1726813464335,3.3724,148.24,148.18,10.37]
[1726813464642,3.3724,148.24,148.2,10.37]
[1726813465342,3.3724,148.24,148.21,3.3729]
[1726813466339,13.7424,148.24,148.2,3.3732]
[1726813467843,3.3726,148.23,148.2,3.3732]
[1726813468044,10.37,148.24,148.19,3.3734]
[1726813468644,10.37,148.22,148.19,3.3734]
[1726813468946,13.7429,148.22,148.18,3.3736]
[1726813470045,13.7429,148.22,148.19,3.3735]
[1726813473848,3.3726,148.23,148.2,13.7432]
[1726813475146,3.3724,148.24,148.21,3.373]
[1726813475354,13.2236,148.25,148.2,10.37]
[1726813475748,1.4319,148.25,148.22,3.3726]
[1726813476154,10.37,148.27,148.23,10.37]
[1726813477049,3.3721,148.26,148.23,13.7425]
[1726813477352,3.3721,148.26,148.23,10.37]
[1726813478143,3.3721,148.25,148.22,3.3727]
[1726813482849,3.3724,148.24,148.16,2.7163]
[1726813483053,3.3724,148.24,148.2,10.37]
[1726813483356,3.3724,148.24,148.2,13.743]
[1726813484059,3.3723,148.25,148.21,13.743]
[1726813484554,3.3723,148.25,148.22,3.3728]
[1726813486757,3.3723,148.25,148.21,3.3729]
[1726813487055,3.3724,148.24,148.21,13.7429]
[1726813490455,10.37,148.27,148.22,13.7428]
[1726813491258,3.372,148.26,148.23,3.3726]
[1726813491461,1.3224,148.28,148.25,10.37]
[1726813491667,10.37,148.3,148.25,10.37]
[1726813491861,4.0997,148.33,148.25,10.37]
[1726813491862,3.3713,148.29,148.25,10.37]
[1726813492559,3.3713,148.29,148.26,3.3719]
[1726813492759,3.3715,148.28,148.25,10.37]
[1726813492967,10.37,148.28,148.23,13.7424]
[1726813493267,3.3717,148.27,148.23,10.37]
[1726813494854,3.3717,148.27,148.24,3.3723]
[1726813497566,3.3715,148.28,148.25,3.372]
[1726813498667,4.0997,148.33,148.25,10.37]
[1726813498866,10.37,148.32,148.27,10.37]
[1726813499261,4.0997,148.33,148.27,10.37]
[1726813499460,3.3711,148.3,148.27,10.37]
[1726813501468,3.3713,148.29,148.26,3.3718]
[1726813501870,3.3713,148.29,148.25,3.3721]
[1726813502059,13.7417,148.27,148.18,5.94889768]
[1726813502263,13.7417,148.27,148.21,10.37]
[1726813502467,13.7417,148.27,148.23,3.3724]
[1726813503061,3.3719,148.26,148.22,3.3727]
[1726813503767,3.3719,148.26,148.23,3.3725]
[1726813503966,13.7417,148.27,148.23,3.3725]
[1726813504162,10.37,148.28,148.23,10.37]
[1726813504366,10.37,148.29,148.24,13.7422]
[1726813504565,4.0997,148.33,148.24,10.37]
[1726813504761,10.37,148.3,148.24,10.37]
[1726813504962,10.37,148.3,148.25,3.372]
[1726813505169,10.37,148.31,148.26,10.37]
[1726813505371,3.3712,148.29,148.26,10.37]
[1726813506472,3.3712,148.29,148.25,13.7419]
[1726813506773,3.3712,148.29,148.26,3.3719]
[1726813507263,4.0997,148.33,148.27,13.7415]
[1726813507466,11.40610208,148.32,148.27,13.7415]
[1726813507672,10.37,148.32,148.27,13.7415]
[1726813508072,3.3709,148.31,148.27,13.7415]
[1726813509376,10.37,148.32,148.27,13.7415]
[1726813509377,3.371,148.3,148.27,13.7415]
[1726813511176,4.0997,148.33,148.28,13.7414]
[1726813511377,4.0997,148.33,148.29,10.37]
[1726813511571,2.7148,148.33,148.29,10.37]
[1726813511966,3.36549568,148.36,148.29,10.37]
[1726813512167,10.37,148.35,148.3,10.37]
[1726813513076,10.37,148.35,148.31,3.3707]
[1726813513872,13.74,148.35,148.31,3.3707]
[1726813514073,3.37,148.35,148.32,10.37]
[1726813514281,13.0084,148.37,148.23,4.1122]
[1726813514282,2.6384,148.37,148.33,13.7403]
[1726813514677,3.3697,148.36,148.33,13.7403]
[1726813514872,2.6384,148.37,148.33,13.7403]
[1726813515279,6.008,148.37,148.33,13.7403]
[1726813516280,4.701,148.37,148.33,13.7403]
[1726813517382,4.701,148.37,148.33,3.3703]
[1726813517677,10.37,148.36,148.31,10.37]
[1726813518981,3.3699,148.35,148.31,13.7407]
[1726813520379,1.4208,148.39,148.34,10.37]
[1726813520578,10.37,148.41,148.36,10.37]
[1726813520779,3.3691,148.39,148.36,10.37]
[1726813521687,10.37,148.41,148.36,10.37]
[1726813521688,3.3692,148.38,148.36,10.37]
[1726813521879,3.3692,148.38,148.34,13.74]
[1726813524186,3.3694,148.37,148.34,3.37]
[1726813524381,10.37,148.37,148.33,3.3702]
[1726813525591,3.3695,148.37,148.33,13.7402]
[1726813527181,3.3695,148.37,148.35,10.37]
[1726813527382,10.37,148.39,148.35,10.37]
[1726813528179,3.3693,148.38,148.35,13.7398]
[1726813528991,3.3693,148.38,148.35,10.37]
[1726813529389,3.3694,148.37,148.35,10.37]
[1726813529691,3.3694,148.37,148.33,13.7402]
[1726813530687,3.3694,148.37,148.34,3.3701]
[1726813531288,3.3694,148.37,148.33,13.7402]
[1726813531888,10.37,148.36,148.32,3.3705]
[1726813532085,10.37,148.36,148.29,1.3259]
[1726813532086,10.37,148.34,148.29,11.6959]
[1726813532687,3.3705,148.33,148.3,3.371]
[1726813532990,10.37,148.34,148.29,10.37]
[1726813533197,3.38278702,148.37,148.29,10.37]
[1726813533198,10.37,148.33,148.29,10.37]
[1726813533385,10.37,148.33,148.28,11.8023]
[1726813533589,10.37,148.33,148.29,10.37]
[1726813534695,10.37,148.35,148.3,10.37]
[1726813535696,3.3703,148.34,148.3,13.7409]
[1726813537988,13.74,148.35,148.31,13.7407]
[1726813539098,10.37,148.35,148.3,3.3709]
[1726813539301,10.37,148.34,148.29,10.37]
[1726813540200,3.3705,148.33,148.29,13.7412]
[1726813540595,3.3705,148.33,148.29,10.37]
[1726813541798,3.3705,148.33,148.3,3.3709]
[1726813541993,13.7402,148.34,148.31,10.37]
[1726813543705,10.37,148.34,148.31,10.37]
[1726813544506,10.37,148.33,148.28,1.4323]
[1726813544710,6.09166358,148.37,148.25,10.37]
[1726813544911,10.37,148.3,148.25,10.37]
[1726813546704,10.37,148.29,148.24,10.37]
[1726813547204,13.7412,148.3,148.26,3.3719]
[1726813547408,3.3712,148.3,148.26,3.3719]
[1726813550107,13.7408,148.31,148.27,10.37]
[1726813550912,10.37,148.33,148.28,10.37]
[1726813551109,10.37,148.32,148.28,10.37]
[1726813552804,3.3708,148.31,148.28,10.37]
[1726813553311,6.09166358,148.37,148.23,4.0888]
[1726813553512,10.37,148.29,148.24,10.37]
[1726813553712,10.37,148.3,148.26,10.37]
[1726813553912,13.7412,148.3,148.26,10.37]
[1726813554310,3.3707,148.32,148.28,10.37]
[1726813554710,3.3707,148.32,148.23,4.0888]
[1726813554711,10.37,148.33,148.3,10.37]
[1726813554910,3.3704,148.33,148.3,13.741]
[1726813555114,10.37,148.35,148.3,10.37]
[1726813555509,3.3703,148.33,148.3,13.741]
[1726813555909,3.3703,148.33,148.31,10.37]
[1726813556115,3.3703,148.33,148.3,13.741]
[1726813556912,3.3705,148.32,148.29,13.7411]
[1726813557111,13.7405,148.32,148.29,3.3711]
[1726813557313,13.7405,148.32,148.28,13.7414]
[1726813562110,13.7405,148.32,148.29,3.3712]
[1726813563519,3.3705,148.32,148.29,13.7412]
[1726813563919,3.3704,148.33,148.29,13.7412]
[1726813566021,3.3701,148.34,148.3,10.37]
[1726813566617,3.3701,148.34,148.3,13.7408]
[1726813567521,10.37,148.34,148.29,3.3711]
[1726813567720,10.37,148.32,148.27,10.37]
[1726813568318,3.3709,148.31,148.27,13.7414]
[1726813568518,3.3709,148.31,148.27,10.37]
[1726813568914,3.3709,148.31,148.27,13.7415]
[1726813571117,3.371,148.3,148.27,10.37]
[1726813571313,3.371,148.3,148.23,4.0888]
[1726813571314,10.37,148.29,148.24,10.37]
[1726813571515,10.37,148.28,148.23,13.1216]
[1726813571721,13.7416,148.28,148.24,3.3723]
[1726813572518,3.3716,148.28,148.25,3.3721]
[1726813572818,13.7413,148.29,148.25,13.7421]
[1726813574023,1.3031,148.31,148.28,10.37]
[1726813574320,10.37,148.32,148.28,10.37]
[1726813574321,10.37,148.33,148.28,10.37]
[1726813574527,3.3708,148.31,148.28,10.37]
[1726813577826,3.3708,148.31,148.28,13.7414]
[1726813581028,3.3706,148.32,148.29,3.3712]
[1726813581724,3.3706,148.32,148.28,13.7414]
[1726813587435,3.3709,148.31,148.28,10.37]
[1726813588829,10.37,148.31,148.26,13.7418]
[1726813589731,3.3711,148.3,148.26,13.7418]
[1726813589930,13.7411,148.3,148.26,13.7418]
[1726813591233,13.7411,148.3,148.26,3.3718]
[1726813593938,3.3713,148.29,148.26,3.3718]
[1726813594137,10.37,148.27,148.09,13.5023]
[1726813594338,10.37,148.26,148.2,16.88156999]
[1726813594536,3.3723,148.25,148.21,9.88446999]
[1726813594837,10.37,148.24,148.2,10.37]
[1726813595033,10.37,148.24,148.21,6.51321753]
[1726813595235,10.37,148.24,148.2,10.37]
[1726813595934,13.7425,148.24,148.21,3.373]
[1726813597333,3.3722,148.25,148.22,13.7428]
[1726813598340,3.3722,148.25,148.22,10.37]
[1726813598533,3.3722,148.25,148.21,13.743]
[1726813603341,3.3722,148.25,148.22,3.3728]
[1726813606242,3.3722,148.25,148.21,10.37]
[1726813606243,3.3722,148.25,148.21,13.7429]
[1726813608142,3.3722,148.25,148.22,3.3728]
[1726813609846,10.37,148.26,148.21,13.7429]
[1726813610735,3.3722,148.25,148.21,13.7429]
[1726813611140,3.3722,148.25,148.22,3.3728]
[1726813617650,13.742,148.26,148.22,3.3728]
[1726813617847,10.37,148.24,148.21,3.373]
[1726813618043,10.37,148.23,148.18,1.352]
[1726813618248,10.37,148.22,148.18,1.352]
[1726813618447,10.37,148.22,148.18,4.7256]
[1726813618747,13.7426,148.23,148.18,11.722]
[1726813619847,13.7426,148.23,148.19,3.3733]
[1726813620048,3.3732,148.21,148.16,4.56491705]
[1726813620249,10.37,148.22,148.17,16.88365575]
[1726813620443,10.37,148.22,148.18,3.3736]
[1726813620645,10.37,148.22,148.17,10.37]
[1726813621754,13.743,148.22,148.19,3.3735]
[1726813622648,2.7056,148.27,148.21,3.373]
[1726813622853,10.37,148.25,148.2,10.37]
[1726813623255,10.37,148.24,148.21,3.3729]
[1726813623858,3.3723,148.25,148.21,3.3729]
[1726813624047,1.3139,148.28,148.22,10.37]
[1726813624248,10.37,148.27,148.22,10.37]
[1726813624453,11.6839,148.28,148.23,10.37]
[1726813624656,15.0555,148.28,148.24,3.3723]
[1726813625456,10.37,148.26,148.19,10.38314883]
[1726813625757,10.37,148.26,148.21,10.37]
[1726813625952,10.37,148.26,148.23,3.3724]
[1726813627059,10.37,148.26,148.24,3.3723]
[1726813628453,10.37,148.25,148.23,3.3725]
[1726813630761,1.3139,148.28,148.23,3.3725]
[1726813630762,10.37,148.26,148.23,3.3725]
[1726813635561,3.3717,148.27,148.23,3.3725]
[1726813635761,10.37,148.26,148.23,3.3725]
[1726813637461,13.7419,148.26,148.23,3.3725]
[1726813639965,13.7419,148.26,148.2,1.3733]
[1726813640168,13.7419,148.26,148.21,16.86572337]
[1726813640468,13.7419,148.26,148.21,10.37]
[1726813640863,13.7419,148.26,148.23,3.3726]
[1726813645671,10.37,148.26,148.23,3.3726]
[1726813647174,1.3139,148.28,148.24,10.37]
[1726813647363,10.37,148.29,148.24,10.37]
[1726813647670,3.3715,148.28,148.25,3.3719]
[1726813649772,13.7417,148.27,148.24,3.3723]
[1726813649971,13.7417,148.27,148.22,10.37]
[1726813650368,13.7417,148.27,148.23,3.3724]
[1726813653069,3.43692427,148.29,148.22,3.3728]
[1726813653070,10.37,148.26,148.22,3.3728]
[1726813653567,10.37,148.23,148.2,3.3731]
[1726813653773,10.37,148.23,148.18,4.55135185]
[1726813653972,10.37,148.23,148.19,6.4926385]
[1726813654169,10.37,148.23,148.18,4.55135185]
[1726813654369,10.37,148.22,148.19,9.86672356]
[1726813654571,10.37,148.22,148.19,3.3735]
[1726813654867,10.37,148.22,148.18,4.55135185]
[1726813655069,10.37,148.22,148.19,6.49361393]
[1726813655269,10.37,148.21,148.18,4.55135185]
[1726813655469,13.7431,148.21,148.18,4.55135185]
[1726813655674,10.37,148.19,148.18,4.55135185]
[1726813656373,10.37,148.19,148.16,134.96]
[1726813656573,10.37,148.19,148.17,6.49526163]
[1726813656773,10.37,148.19,148.17,3.3739]
[1726813660275,13.7431,148.21,148.18,3.3737]
[1726813660673,13.7428,148.22,148.17,10.37]
[1726813660878,10.37,148.22,148.18,6.49574935]
[1726813661180,10.37,148.22,148.18,10.37]
[1726813662479,3.3727,148.23,148.19,3.3733]
[1726813662777,13.7427,148.23,148.19,3.3733]
[1726813665477,3.3727,148.23,148.19,3.3733]
[1726813665774,13.7427,148.23,148.2,3.3732]
[1726813666881,13.7427,148.23,148.19,3.3734]
[1726813667382,3.3729,148.22,148.15,1.4164]
[1726813667582,10.37,148.21,148.17,10.37]
[1726813667881,10.37,148.21,148.18,3.3736]
[1726813668082,10.37,148.2,148.18,3.3736]
[1726813673987,3.373,148.21,148.18,3.3736]
[1726813674189,10.37,148.2,148.18,3.3736]
[1726813681198,10.37,148.19,148.11,4.54785527]
[1726813681401,10.37,148.17,148.12,20.75411385]
[1726813681600,10.37,148.15,148.13,16.874185]
[1726813681802,10.37,148.15,148.14,6.49007115]
[1726813682302,10.37,148.15,148.11,10.38477369]
[1726813682597,10.37,148.15,148.12,16.87538861]
[1726813682799,10.37,148.15,148.13,9.86531492]
[1726813682997,10.37,148.15,148.13,3.3747]
[1726813684494,13.7444,148.15,148.12,3.375]
[1726813684701,10.37,148.14,148.09,4.55069337]
[1726813684999,10.37,148.14,148.06,1.3722]
[1726813685000,10.37,148.14,148.1,6.49481208]
[1726813685198,10.37,148.14,148.11,6.49481208]
[1726813685392,10.37,148.14,148.09,10.37]
[1726813685590,10.37,148.14,148.1,6.49626691]
[1726813685795,3.3751,148.13,148.1,3.3755]
[1726813686196,10.37,148.14,148.1,3.3755]
[1726813686390,13.7447,148.14,148.11,3.3753]
[1726813686800,10.37,148.14,148.11,3.3753]
[1726813687501,13.7445,148.15,148.11,3.3753]
[1726813688302,13.7445,148.15,148.1,10.37]
[1726813688600,10.37,148.16,148.11,10.37]
[1726813688898,10.37,148.16,148.13,3.3747]
[1726813691509,10.37,148.14,148.11,6.49916969]
[1726813692209,10.37,148.14,148.11,9.87436969]
[1726813692807,10.37,148.14,148.11,6.49916969]
[1726813693902,10.37,148.14,148.12,3.3751]
[1726813694102,10.37,148.15,148.12,3.3751]
[1726813696309,13.7444,148.15,148.12,3.3751]
[1726813696602,3.374,148.17,148.14,3.3746]
[1726813696808,1.2985,148.18,148.13,10.37]
[1726813697002,11.6685,148.18,148.13,10.37]
[1726813697206,1.2985,148.18,148.13,10.37]
[1726813697507,15.0423,148.18,148.15,3.3743]
[1726813698105,1.4123,148.19,148.16,3.3742]
[1726813698106,11.7823,148.19,148.16,3.3742]
[1726813699012,10.37,148.18,148.16,3.3742]
[1726813699408,10.37,148.18,148.15,3.3743]
[1726813703211,10.37,148.17,148.14,3.3745]
[1726813704313,13.744,148.17,148.14,3.3745]
[1726813715120,1.4123,148.19,148.13,10.37]
[1726813715418,11.7823,148.19,148.13,10.37]
[1726813715816,1.4123,148.19,148.13,10.37]
[1726813716016,10.37,148.17,148.12,10.37]
[1726813716211,10.37,148.15,148.06,4.55700821]
[1726813716416,10.37,148.14,148.09,10.37]
[1726813716716,10.37,148.14,148.1,16.90268535]
[1726813716915,10.37,148.14,148.11,6.50103283]
[1726813717117,10.37,148.14,148.1,10.4018645]
[1726813717316,10.37,148.14,148.12,3.3749]
[1726813718108,13.7446,148.14,148.11,3.3752]
[1726813720317,13.745,148.13,148.09,3.3757]
[1726813720517,13.745,148.13,148.1,6.50474618]
[1726813720824,13.7453,148.12,148.08,3.3758]
[1726813721015,1.4123,148.19,148.09,6.50699316]
[1726813721016,10.37,148.1,148.09,6.50699316]
[1726813721211,10.37,148.1,148.05,20.78610919]
[1726813721515,10.37,148.1,148.01,2.6709]
[1726813721516,10.37,148.1,148.07,3.3761]
[1726813722022,10.37,148.1,148.05,10.37]
[1726813722321,10.37,148.1,148.07,3.3762]
[1726813723819,13.7455,148.1,148.07,3.3762]
[1726813724020,10.37,148.09,148.07,3.3762]
[1726813725519,13.7458,148.09,148.01,2.6709]
[1726813725724,13.7458,148.09,148.03,145.41]
[1726813725725,10.37,148.08,148.03,145.41]
[1726813726818,10.37,148.08,148.05,3.3766]
[1726813727018,13.7461,148.08,148.05,3.3766]
[1726813727718,3.3763,148.07,148.04,3.3769]
[1726813727919,10.37,148.08,148.04,3.3769]
[1726813728318,13.7461,148.08,148.05,3.3767]
[1726813730815,10.37,148.09,148.04,10.37]
[1726813731618,10.37,148.09,148.06,3.3763]
[1726813739934,10.37,148.07,148.06,3.3763]
[1726813740439,10.37,148.07,148.05,3.3766]
[1726813742936,10.37,148.07,148.06,3.3765]
[1726813747942,10.37,148.07,148.05,3.3766]
[1726813748843,10.37,148.06,148.04,3.3768]
[1726813749048,10.37,148.05,148.01,1.3089]
[1726813749550,10.37,148.06,148.04,3.3769]
[1726813750146,3.376,148.09,148.03,10.37]
[1726813750351,10.37,148.08,148.03,10.37]
[1726813751045,4.0787,148.13,148.01,1.3089]
[1726813751046,10.37,148.07,148.01,1.3089]
[1726813751443,10.37,148.07,148.01,11.6789]
[1726813751647,10.37,148.06,148.01,11.6789]
[1726813752454,10.37,148.06,148.03,3.377]
[1726813753755,10.37,148.06,148.04,3.3769]
[1726813753955,10.37,148.07,148.02,10.37]
[1726813754349,10.37,148.07,148.05,3.3766]
[1726813757856,10.37,148.06,148.04,3.3768]
[1726813764253,3.3762,148.07,148.04,3.3768]
[1726813764459,10.37,148.05,148.04,3.3768]
[1726813765454,10.37,148.05,148.01,1.3089]
[1726813765767,10.37,148.05,148.03,3.3771]
[1726813767860,103.74326134,148.13,148.06,3.3763]
[1726813768056,10.37,148.07,148.02,10.37]
[1726813768459,10.37,148.05,148.03,3.3771]
[1726813773358,10.37,148.04,148.03,3.3771]
[1726813775662,103.74326134,148.13,148.03,10.37]
[1726813775865,1.04272647,148.12,148.04,10.37]
[1726813776166,10.37,148.09,148.04,10.37]
[1726813776765,10.37,148.08,148.03,10.37]
[1726813777159,10.37,148.07,148.03,10.37]
[1726813777965,13.7464,148.07,148.03,10.37]
[1726813779256,13.7464,148.07,148.04,3.3767]
[1726813780768,10.37,148.07,148.04,3.3767]
[1726813782564,3.3761,148.08,148.05,3.3766]
[1726813782764,13.7461,148.08,148.05,3.3766]
[1726813783569,3.3763,148.07,148.04,3.3768]
[1726813785265,3.3766,148.06,148.03,3.3771]
[1726813785465,10.37,148.06,148.01,10.37]
[1726813786062,10.37,148.06,148.04,3.3768]
[1726813786366,4.0787,148.13,148.05,10.37]
[1726813786565,10.37,148.11,148.05,10.37]
[1726813787469,10.37,148.09,148.05,10.37]
[1726813788067,10.37,148.09,148.06,3.3763]
[1726813789066,10.37,148.09,148.07,3.3762]
[1726813789868,13.7454,148.11,148.07,3.3762]
[1726813790468,3.3754,148.11,148.07,13.7462]
[1726813790962,3.3754,148.11,148.08,3.376]
[1726813791157,4.0787,148.13,148.07,10.37]
[1726813791363,14.4487,148.13,148.07,10.37]
[1726813791762,3.3752,148.12,148.08,3.3759]
[1726813793859,3.3753,148.11,148.08,3.3759]
[1726813794169,13.7453,148.11,148.08,3.3759]
[1726813796668,10.37,148.11,148.08,3.3759]
[1726813798468,10.37,148.11,148.07,6.9859]
[1726813799072,4.0787,148.13,148.03,1.3981]
[1726813799268,4.0787,148.13,148.05,10.37]
[1726813799470,10.37,148.11,148.05,10.37]
[1726813799969,3.3757,148.1,148.06,3.3763]
[1726813800169,4.0787,148.13,148.06,10.37]
[1726813800376,10.37,148.12,148.06,10.37]
[1726813800576,10.37,148.09,148.03,1.3981]
[1726813800779,10.37,148.09,148.04,16.67328572]
[1726813801078,10.37,148.09,148.05,6.30267563]
[1726813801371,10.37,148.11,148.05,10.37]
[1726813802070,3.3757,148.1,148.05,10.37]
[1726813802373,10.37,148.1,148.02,1.3118]
[1726813802574,10.37,148.1,148.04,10.37]
[1726813803372,3.3759,148.09,148.04,13.7468]
[1726813803770,3.3765,148.07,148.02,3.3772]
[1726813803973,4.0787,148.13,148.03,16.67488846]
[1726813804170,10.37,148.06,147.99,4.56618954]
[1726813804375,10.37,148.07,148.02,13.7473]
[1726813804674,10.37,148.07,148.02,10.37]
[1726813805071,3.3764,148.07,148.03,10.37]
[1726813805268,3.3764,148.07,147.98,2.6909]
[1726813805269,4.0787,148.13,148.04,10.37]
[1726813805470,10.37,148.09,147.98,2.6909]
[1726813805677,10.37,148.09,148.03,10.37]
[1726813806072,3.3762,148.08,148.03,13.747]
[1726813807168,13.7462,148.08,148.03,13.747]
[1726813807477,10.37,148.12,148.06,10.37]
[1726813807877,4.0787,148.13,148.06,10.37]
[1726813808077,10.37,148.11,148.06,10.37]
[1726813808769,13.7453,148.11,148.07,3.376]
[1726813811185,10.37,148.11,148.07,3.376]
[1726813811584,10.37,148.11,148.08,3.376]
[1726813811878,10.37,148.11,148.06,10.37]
[1726813812385,13.7451,148.12,148.08,3.376]
[1726813812883,13.7451,148.12,148.07,3.3762]
[1726813813283,3.3753,148.11,148.07,3.3762]
[1726813820293,3.3751,148.12,148.07,10.37]
[1726813820492,3.3751,148.12,148.09,10.37]
[1726813824096,13.7455,148.11,148.07,3.3761]
[1726813825787,13.7455,148.11,148.08,3.376]
[1726813826097,3.3755,148.11,148.08,3.376]
[1726813826502,13.7452,148.12,148.08,13.746]
[1726813827298,13.7452,148.12,148.09,3.3757]
[1726813827495,3.3747,148.14,148.09,10.37]
[1726813827701,3.3747,148.14,148.05,3.36947865]
[1726813827702,3.9765,148.18,148.12,10.37]
[1726813827901,3.3743,148.16,148.12,13.7449]
[1726813828203,3.9765,148.18,148.13,10.37]
[1726813828503,3.3742,148.16,148.12,13.745]
[1726813829804,3.3742,148.16,148.12,3.375]
[1726813830000,3.3742,148.16,148.12,13.745]
[1726813833205,13.744,148.17,148.13,3.3748]
[1726813833399,10.37,148.17,148.13,3.3748]
[1726813833799,3.3742,148.16,148.12,10.37]
[1726813834104,3.3742,148.16,148.12,13.745]
[1726813837000,3.3742,148.16,148.13,10.37]
[1726813837301,3.3742,148.16,148.13,3.3748]
[1726813838303,3.3742,148.16,148.12,13.745]
[1726813839102,10.37,148.17,148.12,3.375]
[1726813839103,3.3744,148.15,148.12,3.375]
[1726813839309,3.3744,148.15,148.11,10.37]
[1726813839700,3.3744,148.15,148.11,13.7451]
[1726813840608,3.3746,148.14,148.11,13.7451]
[1726813841506,13.7444,148.16,148.12,3.3751]
[1726813841706,10.37,148.16,148.11,10.37]
[1726813842311,3.3746,148.15,148.11,13.7452]
[1726813842708,10.37,148.15,148.11,10.37]
[1726813842905,3.3749,148.13,148.1,3.3755]
[1726813843314,10.37,148.14,148.08,10.37]
[1726813843809,3.3753,148.12,148.08,13.7459]
[1726813844900,3.3753,148.12,148.09,3.3758]
[1726813848009,10.37,148.12,148.07,10.37]
[1726813851016,3.3753,148.11,148.07,13.7462]
[1726813851210,10.37,148.12,148.07,3.3762]
[1726813851511,3.9765,148.18,148.1,10.37]
[1726813851812,10.37,148.16,148.11,10.37]
[1726813852118,3.3744,148.15,148.11,10.37]
[1726813852317,10.37,148.16,148.11,10.37]
[1726813853817,3.3747,148.14,148.11,10.37]
[1726813854319,3.3747,148.14,148.1,13.7454]
[1726813856419,3.3747,148.14,148.07,1.3602]
[1726813856420,3.375,148.13,148.09,13.7457]
[1726813857621,3.3752,148.12,148.09,10.37]
[1726813858525,3.3753,148.11,148.07,4.7364]
[1726813858725,3.3753,148.11,148.07,15.1064]
[1726813858921,3.3753,148.11,148.07,13.7462]
[1726813862526,10.37,148.14,148.1,10.37]
[1726813862825,10.37,148.15,148.1,10.37]
[1726813863033,3.3748,148.14,148.1,13.7455]
[1726813863222,10.37,148.16,148.11,10.37]
[1726813864027,3.3746,148.15,148.11,13.7452]
[1726813865527,10.37,148.16,148.12,3.375]
[1726813865724,10.37,148.17,148.13,10.37]
[1726813865922,10.37,148.17,148.07,6.27527035]
[1726813866125,10.37,148.17,148.12,13.7449]
[1726813866421,3.3742,148.16,148.12,13.7449]
[1726813866733,10.37,148.14,148.1,3.3754]
[1726813866931,10.37,148.14,148.09,10.37]
[1726813867427,13.7447,148.14,148.09,10.37]
[1726813868926,13.7447,148.14,148.1,3.3754]
[1726813869524,3.3749,148.13,148.1,3.3754]
[1726813869726,3.3749,148.13,148.09,13.7457]
[1726813871330,3.3751,148.12,148.08,15.1775]
[1726813871532,10.37,148.13,148.07,10.37]
[1726813872127,3.3755,148.11,148.07,13.746]
[1726813872328,3.3755,148.11,148.07,10.37]
[1726813872631,3.3752,148.12,148.08,13.7458]
[1726813872830,1.2904,148.18,148.11,10.37]
[1726813873030,10.37,148.16,148.11,10.37]
[1726813873231,3.3746,148.14,148.11,13.7452]